bitfinex-derivatives/quotes_SOLF0:USTF0_20260304
["timestamp","ask_amount","ask_price","bid_price","bid_amount"]
[1772657343365,3.29574783,93.5,93.453,18.26661951]
[1772657343961,9.622,93.503,93.46,3.29574783]
[1772657344261,9.621,93.51,93.46,21.56236734]
[1772657344462,9.621,93.51,93.47,3.29574783]
[1772657344657,9.621,93.51,93.461,18.22743397]
[1772657345060,12.91674783,93.51,93.461,18.22743397]
[1772657346371,9.621,93.51,93.47,31.1481818]
[1772657346566,9.621,93.51,93.47,27.85243397]
[1772657348369,12.91674783,93.51,93.47,27.85243397]
[1772657349870,12.91674783,93.51,93.47,18.22743397]
[1772657350860,9.621,93.51,93.47,27.85243397]
[1772657351771,9.95272189,93.568,93.481,18.19126981]
[1772657352069,3.29574783,93.53,93.481,18.19126981]
[1772657353371,9.619,93.523,93.481,18.19126981]
[1772657353772,3.29574783,93.51,93.466,18.19660167]
[1772657354074,8.13672802,93.547,93.481,18.19660167]
[1772657354075,9.619,93.527,93.481,18.19660167]
[1772657354269,9.95272189,93.578,93.501,18.19660167]
[1772657354571,3.29574783,93.56,93.511,18.19660167]
[1772657355373,9.617,93.549,93.511,18.19660167]
[1772657356564,9.617,93.549,93.506,9.621]
[1772657357565,9.616,93.557,93.511,18.26646575]
[1772657358575,9.617,93.55,93.511,18.26646575]
[1772657358770,12.91274783,93.55,93.511,18.26646575]
[1772657359677,9.618,93.536,93.495,18.26117299]
[1772657359872,3.29574783,93.54,93.495,18.26117299]
[1772657360266,9.617,93.544,93.503,18.26117299]
[1772657361369,3.29574783,93.55,93.504,9.621]
[1772657361577,9.616,93.553,93.505,18.26735642]
[1772657362472,9.616,93.553,93.507,9.621]
[1772657362875,9.617,93.546,93.505,18.26735642]
[1772657363175,3.29574783,93.55,93.505,18.26735642]
[1772657363572,9.617,93.547,93.505,18.26735642]
[1772657364874,9.616,93.554,93.511,18.2588518]
[1772657365971,9.616,93.554,93.512,9.62]
[1772657366167,9.616,93.554,93.513,18.25891661]
[1772657367373,9.616,93.554,93.514,9.62]
[1772657367870,9.616,93.554,93.514,18.28104051]
[1772657368071,191.57600594,93.548,93.514,18.28104051]
[1772657368470,181.95900594,93.548,93.514,18.28104051]
[1772657369770,3.29574783,93.55,93.514,18.28104051]
[1772657372082,3.29574783,93.54,93.499,18.28370108]
[1772657373480,3.29574783,93.54,93.507,27.902174]
[1772657373776,3.29574783,93.54,93.507,18.281174]
[1772657373983,3.29574783,93.55,93.507,18.281174]
[1772657374181,9.617,93.547,93.507,18.281174]
[1772657377576,3.29574783,93.52,93.48,18.27619775]
[1772657377776,149.544,93.585,93.451,18.27619775]
[1772657377777,3.29574783,93.49,93.451,18.27619775]
[1772657378185,3.29574783,93.49,93.462,9.626]
[1772657379489,3.29574783,93.49,93.451,18.27619775]
[1772657379691,3.29574783,93.48,93.451,18.27619775]
[1772657379984,3.29574783,93.49,93.451,18.27619775]
[1772657380188,3.29574783,93.5,93.451,18.27619775]
[1772657381491,3.29574783,93.5,93.46,9.626]
[1772657382387,3.29574783,93.5,93.453,18.2769479]
[1772657382791,8.10282432,93.54,93.478,9.624]
[1772657382792,3.29574783,93.52,93.478,9.624]
[1772657382993,3.29574783,93.52,93.413,19.81943279]
[1772657382994,3.29574783,93.52,93.479,18.2727371]
[1772657383589,3.29574783,93.54,93.481,18.2727371]
[1772657383884,9.618,93.536,93.484,18.2727371]
[1772657385391,9.618,93.536,93.49,9.623]
[1772657385591,9.618,93.536,93.491,18.28593446]
[1772657389695,3.29177305,93.53,93.491,18.28593446]
[1772657391492,3.29177305,93.53,93.493,9.623]
[1772657391799,3.29177305,93.53,93.494,18.27930624]
[1772657392099,3.29177305,93.54,93.494,18.27930624]
[1772657393496,3.29177305,93.54,93.496,18.28307934]
[1772657393998,9.618,93.539,93.496,18.28307934]
[1772657396095,3.29177305,93.54,93.496,18.28307934]
[1772657396096,9.619,93.531,93.496,18.28307934]
[1772657396302,3.29177305,93.52,93.487,9.623]
[1772657396800,3.29177305,93.52,93.487,18.28335703]
[1772657400204,9.621,93.505,93.457,18.28240076]
[1772657400412,3.29177305,93.51,93.461,18.28240076]
[1772657400608,3.29177305,93.5,93.461,18.28240076]
[1772657401009,3.29177305,93.51,93.461,18.28240076]
[1772657401210,3.29177305,93.49,93.461,18.28240076]
[1772657401509,3.29177305,93.47,93.42,3.29177305]
[1772657401710,149.61,93.544,93.39,3.29177305]
[1772657401711,3.29177305,93.44,93.39,3.29177305]
[1772657401916,3.29177305,93.45,93.39,3.29177305]
[1772657402212,3.29177305,93.47,93.42,3.29177305]
[1772657402407,3.29177305,93.45,93.404,1.8622821]
[1772657402603,3.29177305,93.44,93.38,3.29177305]
[1772657402807,3.29177305,93.43,93.374,1.86252131]
[1772657403004,9.97798304,93.467,93.374,1.86252131]
[1772657403209,3.29177305,93.4,93.356,255.50595534]
[1772657403412,3.29177305,93.4,93.35,3.29177305]
[1772657403609,149.718,93.477,93.295,150.007]
[1772657403610,3.29177305,93.43,93.371,10.19654218]
[1772657404105,3.29177305,93.44,93.381,10.19654218]
[1772657404909,3.29177305,93.43,93.37,3.29177305]
[1772657405315,3.29177305,93.41,93.35,3.29177305]
[1772657405516,3.29177305,93.42,93.36,3.29177305]
[1772657405714,12.92077305,93.43,93.37,3.29177305]
[1772657405914,3.29177305,93.42,93.36,3.29177305]
[1772657406314,3.29177305,93.39,93.34,9.638]
[1772657406514,3.29177305,93.39,93.33,3.29177305]
[1772657406710,3.29177305,93.39,93.333,9.639]
[1772657406915,3.29177305,93.41,93.35,3.29177305]
[1772657407112,3.29177305,93.4,93.341,5.11259275]
[1772657407411,3.29177305,93.39,93.341,5.11259275]
[1772657407617,3.29177305,93.39,93.331,5.11259275]
[1772657407816,3.29177305,93.4,93.34,3.29177305]
[1772657408014,9.632,93.404,93.35,3.29177305]
[1772657408311,9.632,93.404,93.35,8.4043658]
[1772657408912,3.29177305,93.37,93.314,5.10856331]
[1772657409113,414.51603085,93.438,93.281,5.10856331]
[1772657409114,3.29177305,93.35,93.281,5.10856331]
[1772657409318,3.29177305,93.31,93.261,5.10856331]
[1772657409520,149.851,93.393,93.261,5.10856331]
[1772657409521,3.29177305,93.32,93.261,5.10856331]
[1772657409910,3.29177305,93.3,93.244,1.86529664]
[1772657410111,3.29177305,93.3,93.24,3.29177305]
[1772657410315,10.87988343,93.346,93.222,5.10856331]
[1772657410316,3.29177305,93.28,93.222,5.10856331]
[1772657410518,3.29177305,93.28,93.22,3.29177305]
[1772657410519,8.27347955,93.32,93.231,5.10856331]
[1772657410709,124.0,93.33,93.241,5.1457227]
[1772657410910,149.876,93.378,93.244,5.1457227]
[1772657411111,8.27347955,93.35,93.244,5.1457227]
[1772657411522,8.27347955,93.35,93.24,8.27347955]
[1772657411523,9.64,93.329,93.247,5.1457227]
[1772657411725,124.0,93.34,93.261,5.1457227]
[1772657412217,423.34630765,93.357,93.261,5.1457227]
[1772657412713,9.637,93.356,93.262,5.14855909]
[1772657413213,9.637,93.356,93.274,5.14855909]
[1772657413418,423.34630765,93.357,93.281,5.14855909]
[1772657414023,423.34630765,93.357,93.282,9.644]
[1772657414718,432.98330765,93.357,93.281,5.14855909]
[1772657415224,432.98330765,93.357,93.282,5.15570056]
[1772657415818,423.34630765,93.357,93.282,5.15570056]
[1772657416327,423.34630765,93.357,93.283,5.15570056]
[1772657417027,423.34630765,93.357,93.296,5.15800029]
[1772657417926,9.637,93.354,93.28,8.27347955]
[1772657418424,9.637,93.349,93.277,5.15800029]
[1772657418822,9.637,93.349,93.278,9.645]
[1772657419216,423.34630765,93.357,93.279,5.16173126]
[1772657419821,9.637,93.355,93.282,9.644]
[1772657420023,423.34630765,93.357,93.279,5.16173126]
[1772657420424,423.34630765,93.357,93.281,9.644]
[1772657421021,9.637,93.353,93.281,9.644]
[1772657421227,8.27347955,93.35,93.269,9.646]
[1772657421618,8.27347955,93.31,93.232,9.649]
[1772657421820,8.27347955,93.27,93.224,1.86568665]
[1772657422028,8.27347955,93.27,93.179,282.85227393]
[1772657422029,8.27347955,93.29,93.207,5.14790973]
[1772657422526,8.27347955,93.31,93.211,5.14457507]
[1772657422823,8.27347955,93.31,93.215,5.14457507]
[1772657423029,19.273,93.362,93.214,1.86611684]
[1772657423030,8.27347955,93.33,93.236,5.14457507]
[1772657423424,9.64,93.319,93.257,9.647]
[1772657423628,8.27347955,93.35,93.258,5.14457507]
[1772657424525,9.638,93.341,93.268,9.646]
[1772657424719,8.27347955,93.35,93.258,5.14457507]
[1772657425117,9.641,93.317,93.258,5.14457507]
[1772657425324,8.27347955,93.33,93.241,5.1720168]
[1772657426032,8.27347955,93.31,93.221,5.17214478]
[1772657426820,9.643,93.295,93.221,5.17214478]
[1772657427223,8.27347955,93.31,93.221,5.17214478]
[1772657428227,9.643,93.296,93.23,9.65]
[1772657428425,8.27347955,93.31,93.23,9.65]
[1772657428624,8.27347955,93.31,93.221,5.17214478]
[1772657428833,9.645,93.276,93.206,267.44650677]
[1772657429127,8.27347955,93.29,93.206,267.44650677]
[1772657429324,8.27347955,93.29,93.208,5.13199002]
[1772657429929,8.27347955,93.31,93.228,5.13199002]
[1772657430428,8.27347955,93.29,93.228,5.13199002]
[1772657430628,8.27347955,93.31,93.228,5.13199002]
[1772657432420,8.27347955,93.31,93.214,1.86591172]
[1772657432421,8.27347955,93.29,93.215,5.13634293]
[1772657433322,9.643,93.296,93.229,5.13717535]
[1772657433529,8.27347955,93.31,93.229,5.13717535]
[1772657433726,8.27347955,93.33,93.229,5.13717535]
[1772657434132,9.641,93.31,93.229,5.13717535]
[1772657434333,8.27347955,93.33,93.229,5.13717535]
[1772657434729,8.27347955,93.33,93.26,9.646]
[1772657435524,8.27347955,93.35,93.268,5.14167154]
[1772657436029,9.64,93.326,93.268,5.14167154]
[1772657436328,8.27347955,93.35,93.268,5.14167154]
[1772657436528,8.27347955,93.35,93.214,1.86591172]
[1772657436529,9.643,93.298,93.223,5.14167154]
[1772657436731,8.27347955,93.32,93.223,5.14167154]
[1772657437125,9.642,93.309,93.253,14.75718746]
[1772657437328,9.642,93.309,93.253,5.11018746]
[1772657438035,149.882,93.374,93.253,5.11018746]
[1772657438329,8.27347955,93.34,93.253,5.11018746]
[1772657438538,8.27347955,93.34,93.257,5.10176303]
[1772657439131,8.27347955,93.34,93.273,5.10176303]
[1772657439132,9.64,93.328,93.273,5.10176303]
[1772657439726,9.64,93.32,93.273,5.10176303]
[1772657440037,8.27347955,93.34,93.273,5.10176303]
[1772657440532,9.639,93.33,93.273,14.74676303]
[1772657441037,8.27347955,93.34,93.273,5.10176303]
[1772657442133,8.27347955,93.36,93.273,5.10176303]
[1772657442731,9.639,93.336,93.284,9.644]
[1772657443638,9.639,93.336,93.284,14.76577998]
[1772657444038,19.265,93.398,93.297,5.12177998]
[1772657445137,9.636,93.364,93.318,14.73925845]
[1772657445440,9.636,93.364,93.318,5.09825845]
[1772657445835,9.637,93.355,93.318,5.09825845]
[1772657446136,9.637,93.355,93.291,5.09825845]
[1772657446341,9.637,93.355,93.29,8.27347955]
[1772657446342,183.62290374,93.406,93.329,9.639]
[1772657446641,8.26060102,93.37,93.291,5.10010038]
[1772657447039,8.26060102,93.37,93.301,5.10010038]
[1772657447640,8.26060102,93.39,93.312,5.10010038]
[1772657448739,9.635,93.376,93.321,5.24653768]
[1772657448940,8.26060102,93.39,93.321,5.24653768]
[1772657449841,8.26060102,93.37,93.302,5.24653768]
[1772657450139,9.638,93.345,93.288,9.644]
[1772657450344,8.26060102,93.35,93.288,9.644]
[1772657450539,8.26060102,93.35,93.283,5.24653768]
[1772657451141,9.639,93.337,93.285,5.19513196]
[1772657451946,8.26060102,93.35,93.25,8.26060102]
[1772657451947,8.26060102,93.35,93.251,5.19513196]
[1772657452540,9.64,93.32,93.251,5.19513196]
[1772657452842,8.26060102,93.33,93.251,5.19513196]
[1772657453043,8.26060102,93.31,93.251,5.19513196]
[1772657453243,9.644,93.284,93.235,5.21045654]
[1772657454147,9.644,93.284,93.237,9.649]
[1772657454842,9.643,93.292,93.245,9.648]
[1772657455046,8.12944093,93.309,93.245,9.648]
[1772657455241,8.26060102,93.31,93.245,9.648]
[1772657455638,9.643,93.293,93.245,9.648]
[1772657455843,9.643,93.293,93.237,9.649]
[1772657456247,9.643,93.293,93.238,5.23420632]
[1772657456647,9.643,93.293,93.24,5.17797184]
[1772657457437,9.643,93.293,93.246,9.648]
[1772657458047,8.26060102,93.33,93.254,5.17797184]
[1772657458247,16.38636703,93.35,93.254,5.17797184]
[1772657458449,8.26060102,93.35,93.254,5.17797184]
[1772657458744,9.64,93.324,93.273,9.645]
[1772657458937,8.12576601,93.349,93.271,5.16690892]
[1772657459142,8.26060102,93.37,93.271,5.16690892]
[1772657459346,8.26060102,93.37,93.283,5.16690892]
[1772657460238,9.639,93.336,93.283,5.16690892]
[1772657461050,9.64,93.321,93.251,5.16216695]
[1772657461246,8.26060102,93.33,93.251,5.16216695]
[1772657461448,8.26060102,93.33,93.224,1.86590672]
[1772657461449,8.26060102,93.31,93.225,5.16216695]
[1772657462249,8.26060102,93.31,93.235,5.16216695]
[1772657463452,8.26060102,93.29,93.214,1.86587671]
[1772657463646,9.642,93.301,93.245,9.648]
[1772657463844,8.12642278,93.309,93.215,5.17764523]
[1772657464041,8.26060102,93.31,93.215,5.17764523]
[1772657464243,8.26060102,93.29,93.215,5.17764523]
[1772657464549,8.26060102,93.27,93.171,5.17926999]
[1772657464744,8.26060102,93.27,93.2,5.17926999]
[1772657464943,124.0,93.29,93.178,5.17926999]
[1772657465146,8.26060102,93.29,93.191,5.17926999]
[1772657465347,8.26060102,93.27,93.191,5.17926999]
[1772657465857,9.649,93.239,93.191,5.17926999]
[1772657466356,8.26060102,93.25,93.164,1.8668977]
[1772657466650,8.133966,93.275,93.153,5.17926999]
[1772657466852,8.26060102,93.23,93.153,5.17926999]
[1772657467056,8.26060102,93.23,93.163,9.657]
[1772657467252,8.26060102,93.23,93.153,5.17926999]
[1772657468156,9.652,93.212,93.153,5.17926999]
[1772657469153,8.26060102,93.23,93.144,1.86728838]
[1772657469355,8.26060102,93.23,93.133,5.23189107]
[1772657469751,8.26060102,93.23,93.135,5.23189107]
[1772657470256,9.652,93.204,93.135,5.23189107]
[1772657470550,8.26060102,93.23,93.135,5.23189107]
[1772657470753,8.26060102,93.21,93.135,5.23189107]
[1772657471454,8.26060102,93.21,93.114,5.20361715]
[1772657471662,8.26060102,93.21,93.115,5.20361715]
[1772657471951,9.654,93.184,93.115,5.20361715]
[1772657472353,8.26060102,93.19,93.115,5.20361715]
[1772657472851,9.656,93.174,93.115,5.20361715]
[1772657473052,8.26060102,93.21,93.12,8.26060102]
[1772657473354,417.11853401,93.225,93.141,5.06177784]
[1772657473753,8.26060102,93.25,93.141,5.06177784]
[1772657474262,8.26060102,93.25,93.146,5.06177784]
[1772657474549,9.92537655,93.295,93.161,5.05578826]
[1772657474761,8.26060102,93.27,93.161,5.05578826]
[1772657475963,9.647,93.245,93.175,5.05578826]
[1772657476556,9.647,93.245,93.18,5.05578826]
[1772657477353,9.647,93.245,93.181,14.71270054]
[1772657477560,9.647,93.245,93.182,5.05870054]
[1772657479062,9.646,93.259,93.183,5.03306979]
[1772657479858,9.646,93.259,93.199,9.652]
[1772657480063,9.646,93.259,93.2,5.03306979]
[1772657481265,19.282,93.305,93.2,5.03306979]
[1772657481459,8.26060102,93.29,93.2,5.03306979]
[1772657481663,8.26060102,93.29,93.201,5.03591545]
[1772657482264,8.26060102,93.31,93.201,5.03591545]
[1772657482465,9.643,93.286,93.223,5.03591545]
[1772657483271,8.26060102,93.33,93.226,5.0143897]
[1772657483569,8.26060102,93.33,93.241,5.0143897]
[1772657484270,8.26060102,93.29,93.214,5.0143897]
[1772657484668,9.645,93.265,93.214,5.0143897]
[1772657485072,8.26060102,93.29,93.214,5.0143897]
[1772657485568,9.645,93.266,93.214,5.0143897]
[1772657488076,8.26060102,93.31,93.226,5.03060621]
[1772657489374,124.0,93.32,93.243,5.03030863]
[1772657489375,8.26060102,93.32,93.243,5.03030863]
[1772657490174,8.26060102,93.32,93.221,5.03030863]
[1772657490369,8.26060102,93.3,93.221,5.03030863]
[1772657491475,9.643,93.285,93.221,5.03030863]
[1772657492476,8.26060102,93.3,93.225,5.03150072]
[1772657493377,9.643,93.284,93.227,9.649]
[1772657494681,8.26060102,93.28,93.201,5.00455797]
[1772657495478,8.26060102,93.3,93.209,5.00455797]
[1772657496181,9.645,93.269,93.209,5.00455797]
[1772657497075,9.645,93.269,93.223,14.65123433]
[1772657497682,9.644,93.277,93.226,5.00223433]
[1772657497977,9.644,93.277,93.17,8.26060102]
[1772657497978,8.26060102,93.34,93.24,8.26060102]
[1772657498182,8.26060102,93.34,93.241,5.00223433]
[1772657498583,416.72847949,93.351,93.271,4.95604496]
[1772657499087,9.638,93.334,93.275,4.95604496]
[1772657499286,416.72847949,93.351,93.275,4.95604496]
[1772657499585,9.639,93.327,93.275,4.95604496]
[1772657499884,416.72847949,93.351,93.275,4.95604496]
[1772657500481,9.639,93.327,93.275,4.95604496]
[1772657501077,9.638,93.336,93.275,4.95604496]
[1772657501683,9.638,93.336,93.276,9.644]
[1772657501887,9.638,93.336,93.276,14.51454276]
[1772657502186,9.639,93.326,93.276,4.87054276]
[1772657502783,9.638,93.338,93.276,4.87054276]
[1772657503683,9.637,93.348,93.276,4.87054276]
[1772657504388,9.637,93.34,93.287,4.87421817]
[1772657504683,416.72847949,93.351,93.287,4.87421817]
[1772657504990,416.72847949,93.351,93.277,9.644]
[1772657505292,9.638,93.332,93.277,14.53123827]
[1772657506186,416.72847949,93.351,93.287,4.88723827]
[1772657506791,9.636,93.35,93.296,4.88166042]
[1772657508090,9.637,93.341,93.278,4.88166042]
[1772657508683,9.638,93.332,93.28,9.644]
[1772657509483,9.639,93.323,93.278,4.88166042]
[1772657509684,8.2624959,93.36,93.278,4.88166042]
[1772657510294,9.638,93.333,93.279,9.644]
[1772657512088,9.638,93.333,93.278,4.88166042]
[1772657512288,8.2624959,93.34,93.258,4.7997433]
[1772657512991,9.639,93.325,93.269,9.645]
[1772657513196,9.639,93.325,93.27,4.81651231]
[1772657513399,8.2624959,93.36,93.27,4.81651231]
[1772657514088,9.639,93.327,93.277,9.644]
[1772657514290,8.2624959,93.34,93.27,4.81651231]
[1772657514688,9.639,93.319,93.271,9.644]
[1772657515289,9.639,93.319,93.27,4.81651231]
[1772657516692,9.64,93.31,93.27,4.81651231]
[1772657520397,8.2624959,93.34,93.241,4.83563407]
[1772657520595,169.73331052,93.393,93.241,4.83563407]
[1772657520596,8.2624959,93.3,93.241,4.83563407]
[1772657521196,9.642,93.294,93.242,4.83840383]
[1772657521398,412.07482623,93.338,93.242,4.83840383]
[1772657522092,9.64,93.317,93.263,9.645]
[1772657522294,9.64,93.317,93.264,4.83840383]
[1772657523001,412.07482623,93.338,93.264,4.83840383]
[1772657523311,8.12605922,93.337,93.241,4.85166687]
[1772657523802,8.12605922,93.337,93.259,4.85166687]
[1772657525597,8.2624959,93.32,93.248,9.647]
[1772657525799,8.2624959,93.3,93.223,4.83968638]
[1772657526001,8.2624959,93.28,93.223,4.83968638]
[1772657526203,9.645,93.266,93.223,4.83968638]
[1772657526503,8.2624959,93.28,93.191,4.83968638]
[1772657527203,8.2624959,93.26,93.191,4.83968638]
[1772657528003,9.648,93.24,93.191,4.83968638]
[1772657528310,8.2624959,93.26,93.191,4.83968638]
[1772657528901,9.647,93.244,93.191,4.83968638]
[1772657529107,8.2624959,93.26,93.171,4.85960847]
[1772657529605,9.649,93.227,93.173,9.655]
[1772657529807,8.12233157,93.259,93.174,4.85960847]
[1772657530108,8.2624959,93.24,93.174,4.85960847]
[1772657530308,150.013,93.283,93.156,4.85960847]
[1772657530309,8.2624959,93.22,93.156,4.85960847]
[1772657530509,8.2624959,93.22,93.087,416.1020005]
[1772657530510,8.2624959,93.22,93.131,4.91746988]
[1772657530699,9.653,93.193,93.136,9.658]
[1772657530903,9.653,93.193,93.137,4.91746988]
[1772657532707,8.2624959,93.2,93.115,4.97351038]
[1772657533110,8.0906169,93.223,93.115,4.97351038]
[1772657533111,8.2624959,93.18,93.115,4.97351038]
[1772657533712,9.655,93.166,93.115,4.97351038]
[1772657534017,8.2624959,93.2,93.115,4.97351038]
[1772657534310,8.2624959,93.18,93.115,4.97351038]
[1772657534508,9.655,93.169,93.115,4.97351038]
[1772657534911,8.2624959,93.2,93.115,4.97351038]
[1772657535113,8.2624959,93.2,93.11,8.2624959]
[1772657535114,8.2624959,93.2,93.127,5.08401909]
[1772657535615,8.2624959,93.16,93.072,5.08401909]
[1772657536008,8.2624959,93.16,93.076,5.08401909]
[1772657536714,9.657,93.148,93.081,5.02068468]
[1772657537212,9.656,93.159,93.083,5.02068468]
[1772657537410,8.2624959,93.18,93.083,5.02068468]
[1772657537610,8.2624959,93.2,93.101,5.02068468]
[1772657537806,9.654,93.175,93.108,5.02068468]
[1772657538213,8.2624959,93.2,93.123,5.02068468]
[1772657538513,8.2624959,93.22,93.123,5.02068468]
[1772657538815,150.085,93.239,93.123,5.02068468]
[1772657538816,8.2624959,93.2,93.123,5.02068468]
[1772657540320,9.654,93.177,93.123,5.02068468]
[1772657541219,9.655,93.167,93.123,5.02068468]
[1772657542316,8.2624959,93.2,93.123,5.02068468]
[1772657544221,9.655,93.171,93.123,5.02068468]
[1772657544523,8.2624959,93.2,93.123,5.02068468]
[1772657545123,9.654,93.181,93.123,5.02068468]
[1772657545319,8.2624959,93.2,93.123,5.02068468]
[1772657545524,8.2624959,93.22,93.123,5.02068468]
[1772657545720,9.653,93.191,93.135,4.92327422]
[1772657547123,9.653,93.191,93.137,4.92518542]
[1772657547924,9.652,93.2,93.14,4.92518542]
[1772657548121,19.292,93.258,93.141,4.92518542]
[1772657548122,8.2624959,93.24,93.141,4.92518542]
[1772657548322,8.2624959,93.22,93.141,4.92518542]
[1772657548824,9.651,93.204,93.143,4.91450208]
[1772657549224,8.2624959,93.24,93.151,4.91450208]
[1772657549428,8.2624959,93.26,93.151,4.91450208]
[1772657549723,9.65,93.216,93.155,9.656]
[1772657549916,8.2624959,93.24,93.156,4.91450208]
[1772657550316,9.65,93.217,93.158,4.91450208]
[1772657550522,8.2624959,93.24,93.158,4.91450208]
[1772657550927,9.65,93.216,93.158,4.91450208]
[1772657551320,8.2624959,93.24,93.13,8.2624959]
[1772657551525,8.2624959,93.24,93.131,4.93488061]
[1772657552523,9.652,93.2,93.15,9.657]
[1772657554018,9.652,93.2,93.13,8.2624959]
[1772657554019,8.2624959,93.24,93.159,4.93586692]
[1772657554626,9.65,93.218,93.163,4.94290422]
[1772657555528,9.65,93.218,93.17,9.655]
[1772657556119,9.651,93.21,93.163,4.94290422]
[1772657556532,150.019,93.279,93.104,19.324]
[1772657556533,8.2624959,93.22,93.131,4.94290422]
[1772657557431,9.653,93.194,93.135,9.659]
[1772657557725,8.2624959,93.22,93.135,9.659]
[1772657558430,9.653,93.187,93.135,9.659]
[1772657558931,9.653,93.188,93.142,9.658]
[1772657560326,9.654,93.18,93.135,4.94270076]
[1772657562030,9.655,93.173,93.125,9.66]
[1772657562228,8.2624959,93.2,93.111,4.94059266]
[1772657562826,8.2624959,93.18,93.111,4.94059266]
[1772657563026,8.2624959,93.16,93.081,4.93844257]
[1772657564532,9.658,93.136,93.084,9.664]
[1772657564832,8.2624959,93.18,93.085,4.94234246]
[1772657565221,9.657,93.154,93.106,9.662]
[1772657566328,9.656,93.163,93.109,4.94234246]
[1772657566633,8.2624959,93.18,93.109,4.94234246]
[1772657568430,9.657,93.155,93.111,9.661]
[1772657568930,9.656,93.163,93.114,4.90370764]
[1772657569330,8.29622095,93.19,93.114,4.90370764]
[1772657569331,8.29622095,93.21,93.114,4.90370764]
[1772657569932,8.29622095,93.21,93.131,4.90370764]
[1772657570232,8.29622095,93.19,93.091,4.90370764]
[1772657570839,9.657,93.152,93.106,9.662]
[1772657571733,9.656,93.16,93.113,9.661]
[1772657572438,9.655,93.169,93.12,9.66]
[1772657572640,8.11134927,93.189,93.113,4.84165447]
[1772657572837,8.29622095,93.19,93.113,4.84165447]
[1772657574338,9.657,93.151,93.113,4.84165447]
[1772657574642,8.29622095,93.17,93.102,9.662]
[1772657575140,9.657,93.152,93.102,9.662]
[1772657576638,9.657,93.152,93.102,14.50516612]
[1772657576839,9.658,93.145,93.102,14.50516612]
[1772657578241,9.658,93.145,93.103,4.84316612]
[1772657580948,9.657,93.153,93.105,4.85164079]
[1772657581143,19.307,93.185,93.105,4.85164079]
[1772657581344,19.307,93.185,93.063,19.84780786]
[1772657581345,8.29622095,93.15,93.067,4.85164079]
[1772657581542,19.89531052,93.196,93.038,19.84780786]
[1772657581543,8.29622095,93.11,93.038,4.85164079]
[1772657581746,9.85072982,93.145,93.045,1.86885774]
[1772657582050,9.85072982,93.145,93.021,291.71299812]
[1772657582051,8.29622095,93.1,93.046,4.85164079]
[1772657582250,8.29622095,93.1,93.029,4.85164079]
[1772657582446,169.541,93.151,93.025,1.8695957]
[1772657582447,8.29622095,93.08,93.025,0.0005957]
[1772657582648,9.85072982,93.119,93.025,4.85164079]
[1772657582649,8.29622095,93.11,93.025,4.85164079]
[1772657583545,9.664,93.079,93.025,4.85164079]
[1772657584744,8.15468398,93.109,93.007,4.94726287]
[1772657584745,8.29622095,93.09,93.007,4.94726287]
[1772657585142,8.29622095,93.09,92.964,171.68]
[1772657585143,8.29622095,93.09,92.996,4.94726287]
[1772657585751,8.29622095,93.11,93.011,4.94726287]
[1772657586155,8.29622095,93.11,93.016,4.94726287]
[1772657587954,9.665,93.072,93.016,4.94726287]
[1772657588350,8.29622095,93.09,93.016,4.94726287]
[1772657588649,9.665,93.074,93.016,4.94726287]
[1772657589252,9.665,93.075,93.016,4.94726287]
[1772657589455,8.29622095,93.11,93.016,4.94726287]
[1772657589653,8.29622095,93.12,93.039,5.00999401]
[1772657589852,8.29622095,93.14,93.039,5.00999401]
[1772657590255,179.20486254,93.142,93.002,1.87028398]
[1772657590256,179.20486254,93.142,93.05,8.29622095]
[1772657590451,8.29622095,93.16,93.071,5.00999401]
[1772657591349,9.658,93.137,93.073,5.02135411]
[1772657591553,8.29622095,93.16,93.073,5.02135411]
[1772657592354,8.29622095,93.18,93.079,5.02135411]
[1772657593163,9.656,93.162,93.092,5.02202471]
[1772657593960,9.657,93.152,93.092,5.02202471]
[1772657594361,8.29622095,93.16,93.071,5.02202471]
[1772657595458,9.659,93.134,93.071,5.02202471]
[1772657596357,9.659,93.134,93.072,4.88446864]
[1772657596665,8.29622095,93.18,93.072,4.88446864]
[1772657596860,8.29622095,93.16,93.072,4.88446864]
[1772657597861,9.659,93.128,93.072,4.88446864]